fUSD/lending_fUSD_20240119
["ID","MTS","AMOUNT","RATE_DAILY","PERIOD"]
[312166479,1705675839137,-500.0,0.00021917,2]
[312166481,1705675839147,-500.0,0.00021917,2]
[312166483,1705675839156,-500.0,0.00021917,2]
[312166485,1705675839166,-500.0,0.00021917,2]
[312166487,1705675839177,-500.0,0.00021917,2]
[312166489,1705675839186,-500.0,0.00021917,2]
[312166491,1705675839196,-500.0,0.00021917,2]
[312166493,1705675839207,-500.0,0.00021917,2]
[312166495,1705675839216,-500.0,0.00021917,2]
[312166497,1705675839226,-500.0,0.00021917,2]
[312166498,1705675839236,-500.0,0.00021917,2]
[312166500,1705675839246,-500.0,0.00021917,2]
[312166502,1705675839256,-500.0,0.00021917,2]
[312166505,1705675839266,-236.04796933,0.00021917,2]
[312166506,1705675839276,-500.0,0.00021917,2]
[312166509,1705675839287,-524.0712081,0.00021917,2]
[312166511,1705675839296,-500.0,0.00021917,2]
[312166513,1705675839307,-500.0,0.00021917,2]
[312166515,1705675839317,-500.0,0.00021917,2]
[312166517,1705675839326,-500.0,0.00021917,2]
[312166519,1705675839336,-500.0,0.00021917,2]
[312166520,1705675839346,-500.0,0.00021917,2]
[312166522,1705675839355,-521.00030691,0.00021917,2]
[312166524,1705675839365,-500.0,0.00021917,2]
[312166527,1705675839376,-500.0,0.00021917,2]
[312166528,1705675839385,-500.0,0.00021917,2]
[312166530,1705675839395,-543.06,0.00021917,2]
[312166533,1705675839406,-479.28455419,0.00021917,2]
[312166534,1705675839416,-500.0,0.00021917,2]
[312166536,1705675839428,-708.51,0.00021917,2]
[312166539,1705675839438,-500.0,0.00021917,2]
[312166541,1705675839448,-500.0,0.00021917,2]
[312166543,1705675839458,-505.58,0.00021917,2]
[312166545,1705675839468,-500.0,0.00021917,2]
[312166547,1705675839479,-500.0,0.00021917,2]
[312166549,1705675839488,-576.66,0.00021917,2]
[312166551,1705675839498,-500.0,0.00021917,2]
[312166552,1705675839508,-500.0,0.00021917,2]
[312166554,1705675839518,-500.0,0.00021917,2]
[312166556,1705675839528,-500.0,0.00021917,2]
[312166559,1705675839538,-500.0,0.00021917,2]
[312166561,1705675839548,-757.6,0.00021917,2]
[312166563,1705675839558,-500.0,0.00021917,2]
[312166565,1705675839569,-500.0,0.00021917,2]
[312166566,1705675839580,-500.0,0.00021917,2]
[312166568,1705675839590,-556.27,0.00021917,2]
[312166570,1705675839600,-500.0,0.00021917,2]
[312166572,1705675839612,-500.0,0.00021917,2]
[312166574,1705675839623,-500.0,0.00021917,2]
[312166577,1705675839633,-500.0,0.00021917,2]
[312166578,1705675839643,-500.0,0.00021917,2]
[312166580,1705675839653,-573.28,0.00021917,2]
[312166582,1705675839664,-248.3738915,0.00021917,2]
[312166585,1705675839681,-500.0,0.00021917,2]
[312166586,1705675839692,-579.75,0.00021917,2]
[312166588,1705675839703,-500.0,0.00021917,2]
[312166590,1705675839713,-500.0,0.00021917,2]
[312166592,1705675839724,-500.0,0.00021917,2]
[312166594,1705675839735,-500.0,0.00021917,2]
[312166596,1705675839745,-500.0,0.00021917,2]
[312166598,1705675839756,-500.0,0.00021917,2]
[312166600,1705675839766,-500.0,0.00021917,2]
[312166602,1705675839776,-500.0,0.00021917,2]
[312166604,1705675839786,-500.0,0.00021917,2]
[312166606,1705675839796,-500.0,0.00021917,2]
[312166609,1705675839807,-360.97308159,0.00021917,2]
[312166610,1705675839816,-824.98,0.00021917,2]
[312166612,1705675839826,-500.0,0.00021917,2]
[312166615,1705675839837,-500.0,0.00021917,2]
[312166617,1705675839847,-500.0,0.00021917,2]
[312166619,1705675839857,-500.0,0.00021917,2]
[312166620,1705675839867,-606.67,0.00021917,2]
[312166623,1705675839877,-500.0,0.00021917,2]
[312166625,1705675839887,-500.0,0.00021917,2]
[312166627,1705675839896,-500.0,0.00021917,2]
[312166628,1705675839906,-500.0,0.00021917,2]
[312166631,1705675839916,-438.98890548,0.00021917,2]
[312166633,1705675839928,-500.0,0.00021917,2]
[312166635,1705675839938,-500.0,0.00021917,2]
[312166637,1705675839948,-500.0,0.00021917,2]
[312166639,1705675839958,-500.0,0.00021917,2]
[312166641,1705675839968,-314.17495829,0.00021917,2]
[312166643,1705675839978,-500.0,0.00021917,2]
[312166645,1705675839988,-939.42,0.00021917,2]
[312166647,1705675839997,-687.56,0.00021917,2]
[312166649,1705675840007,-500.0,0.00021917,2]
[312166651,1705675840017,-500.0,0.00021917,2]
[312166653,1705675840027,-500.0,0.00021917,2]
[312166655,1705675840036,-516.56,0.00021917,2]
[312166657,1705675840046,-500.0,0.00021917,2]
[312166658,1705675840055,-500.0,0.00021917,2]
[312166659,1705675840065,-500.0,0.00021917,2]
[312166660,1705675840075,-500.0,0.00021917,2]
[312166661,1705675840085,-500.0,0.00021917,2]
[312166662,1705675840095,-639.89,0.00021917,2]
[312166663,1705675840105,-500.0,0.00021917,2]
[312166664,1705675840115,-500.0,0.00021917,2]
[312166665,1705675840125,-500.0,0.00021917,2]
[312166666,1705675840135,-586.89,0.00021917,2]
[312166668,1705675840144,-500.0,0.00021917,2]
[312166670,1705675840154,-500.0,0.00021917,2]
[312166672,1705675840164,-500.0,0.00021917,2]
[312166674,1705675840175,-666.06,0.00021917,2]
[312166676,1705675840185,-500.0,0.00021917,2]
[312166678,1705675840195,-500.0,0.00021917,2]
[312166680,1705675840206,-500.0,0.00021917,2]
[312166682,1705675840216,-500.0,0.00021917,2]
[312166684,1705675840226,-500.0,0.00021917,2]
[312166686,1705675840236,-770.08,0.00021917,2]
[312166688,1705675840246,-500.0,0.00021917,2]
[312166690,1705675840255,-500.0,0.00021917,2]
[312166692,1705675840265,-500.0,0.00021917,2]
[312166694,1705675840275,-500.0,0.00021917,2]
[312166696,1705675840285,-500.0,0.00021917,2]
[312166698,1705675840294,-510.71,0.00021917,2]
[312166700,1705675840304,-500.0,0.00021917,2]
[312166702,1705675840314,-500.0,0.00021917,2]
[312166704,1705675840324,-500.0,0.00021917,2]
[312166706,1705675840334,-500.0,0.00021917,2]
[312166708,1705675840344,-500.0,0.00021917,2]
[312166710,1705675840354,-500.0,0.00021917,2]
[312166712,1705675840363,-500.0,0.00021917,2]
[312166714,1705675840373,-500.0,0.00021917,2]
[312166716,1705675840382,-500.0,0.00021917,2]
[312166718,1705675840392,-605.9,0.00021917,2]
[312166720,1705675840401,-1000.92,0.00021917,2]
[312166722,1705675840410,-500.0,0.00021917,2]
[312166724,1705675840420,-500.0,0.00021917,2]
[312166726,1705675840429,-565.15,0.00021917,2]
[312166728,1705675840438,-500.0,0.00021917,2]
[312166730,1705675840450,-500.0,0.00021917,2]
[312166732,1705675840459,-500.0,0.00021917,2]
[312166734,1705675840469,-748.06,0.00021917,2]
[312166736,1705675840479,-544.57,0.00021917,2]
[312166738,1705675840488,-500.0,0.00021917,2]
[312166740,1705675840498,-500.0,0.00021917,2]
[312166742,1705675840508,-500.0,0.00021917,2]
[312166745,1705675840518,-500.0,0.00021917,2]
[312166746,1705675840528,-500.0,0.00021917,2]
[312166748,1705675840537,-500.0,0.00021917,2]
[312166750,1705675840547,-500.0,0.00021917,2]
[312166752,1705675840556,-1004.43,0.00021917,2]
[312166754,1705675840566,-500.0,0.00021917,2]
[312166756,1705675840575,-500.0,0.00021917,2]
[312166758,1705675840586,-693.21,0.00021917,2]
[312166760,1705675840596,-614.58,0.00021917,2]
[312166762,1705675840605,-774.82,0.00021917,2]
[312166764,1705675840615,-682.27,0.00021917,2]
[312166766,1705675840625,-500.0,0.00021917,2]
[312166768,1705675840635,-500.0,0.00021917,2]
[312166770,1705675840645,-500.0,0.00021917,2]
[312166772,1705675840654,-500.0,0.00021917,2]
[312166775,1705675840664,-613.82,0.00021917,2]
[312166776,1705675840676,-500.0,0.00021917,2]
[312166778,1705675840685,-500.0,0.00021917,2]
[312166780,1705675840695,-500.0,0.00021917,2]
[312166782,1705675840705,-599.65,0.00021917,2]
[312166784,1705675840714,-500.0,0.00021917,2]
[312166786,1705675840723,-500.0,0.00021917,2]
[312166788,1705675840733,-500.0,0.00021917,2]
[312166790,1705675840743,-172.86726679,0.00021917,2]
[312166792,1705675840753,-538.23,0.00021917,2]
[312166794,1705675840762,-500.0,0.00021917,2]
[312166796,1705675840772,-690.35,0.00021917,2]
[312166798,1705675840783,-669.34,0.00021917,2]
[312166800,1705675840792,-500.0,0.00021917,2]
[312166802,1705675840802,-500.0,0.00021917,2]
[312166804,1705675840812,-500.0,0.00021917,2]
[312166806,1705675840822,-500.0,0.00021917,7]
[312166808,1705675840831,-678.93,0.00021917,2]
[312166810,1705675840841,-525.23,0.00021917,2]
[312166812,1705675840850,-500.0,0.00021917,2]
[312166814,1705675840860,-2072.92,0.00021917,2]
[312166816,1705675840870,-500.0,0.00021917,2]
[312166818,1705675840880,-500.0,0.00021917,2]
[312166820,1705675840890,-742.76,0.00021917,2]
[312166823,1705675840901,-500.0,0.00021917,2]
[312166825,1705675840910,-930.95,0.00021917,2]
[312166826,1705675840921,-614.15502683,0.00021917,2]
[312166829,1705675840932,-500.0,0.00021917,2]
[312166830,1705675840942,-1441.49,0.00021917,2]
[312166833,1705675840952,-500.0,0.00021917,2]
[312166835,1705675840963,-500.0,0.00021917,2]
[312166845,1705675840972,-725.8,0.00021917,2]
[312166852,1705675841129,-500.0,0.00021917,2]
[312166854,1705675841139,-1064.36,0.00021917,2]
[312166856,1705675841150,-500.0,0.00021917,2]
[312166858,1705675841164,-631.31,0.00021917,2]
[312166860,1705675841181,-500.0,0.00021917,2]
[312166862,1705675841190,-561.03,0.00021917,2]
[312166864,1705675841200,-500.0,0.00021917,2]
[312166867,1705675841211,-500.0,0.00021917,2]
[312166869,1705675841221,-500.0,0.00021917,2]
[312166872,1705675841233,-500.0,0.00021917,2]
[312166874,1705675841242,-500.0,0.00021917,2]
[312166876,1705675841253,-500.0,0.00021917,2]
[312166878,1705675841263,-500.0,0.00021917,2]
[312166880,1705675841273,-516.38,0.00021917,2]
[312166883,1705675841283,-794.19,0.00021917,2]
[312166886,1705675841294,-500.0,0.00021917,2]
[312166888,1705675841303,-500.0,0.00021917,2]
[312166890,1705675841313,-500.0,0.00021917,2]
[312166893,1705675841323,-500.0,0.00021917,2]
[312166896,1705675841333,-500.0,0.00021917,2]
[312166899,1705675841342,-500.0,0.00021917,2]
[312166902,1705675841352,-555.44,0.00021917,2]
[312166905,1705675841362,-500.0,0.00021917,2]
[312166908,1705675841372,-500.0,0.00021917,2]
[312166911,1705675841381,-500.0,0.00021917,2]
[312166914,1705675841391,-214.67372917,0.00021917,2]
[312166916,1705675841400,-500.0,0.00021917,2]
[312166918,1705675841410,-1095.13,0.00021917,2]
[312166920,1705675841420,-500.0,0.00021917,2]
[312166922,1705675841430,-500.0,0.00021917,2]
[312166924,1705675841440,-500.0,0.00021917,2]
[312166926,1705675841450,-500.0,0.00021917,2]
[312166929,1705675841459,-515.88,0.00021917,2]
[312166932,1705675841469,-1018.04,0.00021917,2]
[312166935,1705675841480,-540.47,0.00021917,2]
[312166938,1705675841489,-633.64,0.00021917,2]
[312166941,1705675841499,-500.0,0.00021917,2]
[312166944,1705675841509,-597.56,0.00021917,2]
[312166947,1705675841518,-445.30300416,0.00021917,2]
[312166950,1705675841528,-2832.17,0.00021917,2]
[312166953,1705675841538,-500.0,0.00021917,2]
[312166956,1705675841548,-500.0,0.00021917,2]
[312166959,1705675841558,-745.42,0.00021917,2]
[312166962,1705675841568,-500.0,0.00021917,2]
[312166965,1705675841578,-554.08,0.00021917,2]
[312166968,1705675841588,-500.0,0.00021917,2]
[312166971,1705675841600,-503.75,0.00021917,2]
[312166974,1705675841609,-500.0,0.00021917,2]
[312166977,1705675841619,-601.62,0.00021917,2]
[312166980,1705675841629,-500.0,0.00021917,2]
[312166983,1705675841638,-735.52,0.00021917,2]
[312166986,1705675841648,-600.36,0.00021917,2]
[312166989,1705675841657,-500.0,0.00021917,2]
[312166992,1705675841667,-500.0,0.00021917,2]
[312166995,1705675841680,-661.32,0.00021917,2]
[312166998,1705675841690,-500.0,0.00021917,2]
[312167001,1705675841701,-500.0,0.00021917,2]
[312167004,1705675841711,-585.83,0.00021917,2]
[312167007,1705675841721,-500.0,0.00021917,2]
[312167010,1705675841731,-500.0,0.00021917,2]
[312167013,1705675841741,-500.0,0.00021917,2]
[312167016,1705675841751,-652.95,0.00021917,2]
[312167019,1705675841761,-500.0,0.00021917,2]
[312167022,1705675841771,-442.52423539,0.00021917,2]
[312167025,1705675841780,-500.0,0.00021917,2]
[312167028,1705675841791,-612.36,0.00021917,2]
[312167031,1705675841801,-500.0,0.00021917,2]
[312167034,1705675841811,-500.0,0.00021917,2]
[312167037,1705675841821,-500.0,0.00021917,2]
[312167040,1705675841831,-517.047239,0.00021917,2]
[312167043,1705675841840,-500.0,0.00021917,2]
[312167046,1705675841849,-2966.8,0.00021917,2]
[312167049,1705675841858,-500.0,0.00021917,2]
[312167052,1705675841869,-500.0,0.00021917,2]
[312167055,1705675841878,-500.0,0.00021917,2]
[312167058,1705675841888,-500.0,0.00021917,2]
[312167061,1705675841897,-500.0,0.00021917,2]
[312167064,1705675841907,-500.0,0.00021917,2]
[312167067,1705675841917,-500.0,0.00021917,2]
[312167070,1705675841929,-500.0,0.00021917,2]
[312167073,1705675841938,-500.0,0.00021917,2]
[312167076,1705675841948,-824.13,0.00021917,2]
[312167079,1705675841958,-500.0,0.00021917,2]
[312167082,1705675841968,-500.0,0.00021917,2]
[312167085,1705675841977,-500.0,0.00021917,2]
[312167088,1705675841987,-500.0,0.00021917,2]
[312167091,1705675841997,-2532.67,0.00021917,2]
[312167094,1705675842007,-500.0,0.00021917,2]
[312167097,1705675842017,-584.78,0.00021917,2]
[312167100,1705675842027,-500.0,0.00021917,2]
[312167102,1705675842036,-500.0,0.00021917,2]
[312167105,1705675842046,-500.0,0.00021917,2]
[312167109,1705675842057,-500.0,0.00021917,2]
[312167112,1705675842067,-500.0,0.00021917,2]
[312167114,1705675842077,-500.0,0.00021917,2]
[312167117,1705675842087,-645.64,0.00021917,2]
[312167119,1705675842098,-533.93,0.00021917,2]
[312167124,1705675842111,-500.0,0.00021917,2]
[312167127,1705675842125,-500.0,0.00021917,2]
[312167130,1705675842135,-500.0,0.00021917,2]
[312167133,1705675842145,-670.65,0.00021917,2]
[312167136,1705675842155,-500.0,0.00021917,2]
[312167139,1705675842166,-895.14,0.00021917,2]
[312167142,1705675842179,-768.16,0.00021917,2]
[312167145,1705675842190,-500.0,0.00021917,2]
[312167148,1705675842200,-899.19,0.00021917,2]
[312167151,1705675842212,-670.74,0.00021917,2]
[312167154,1705675842222,-1182.87,0.00021917,2]
[312167157,1705675842234,-500.0,0.00021917,2]
[312167160,1705675842244,-150.0,0.00021917,2]
[312167163,1705675842254,-500.0,0.00021917,2]
[312167166,1705675842263,-1128.87,0.00021917,2]
[312167170,1705675842275,-2480.8,0.00021917,2]
[312167172,1705675842285,-500.0,0.00021917,2]
[312167174,1705675842295,-1073.63,0.00021917,5]
[312167176,1705675842305,-500.0,0.00021917,2]
[312167177,1705675842316,-500.0,0.00021917,2]
[312167180,1705675842327,-500.0,0.00021917,2]
[312167183,1705675842337,-904.23,0.00021917,2]
[312167186,1705675842348,-500.0,0.00021917,2]
[312167189,1705675842358,-1025.24,0.00021917,2]
[312167191,1705675842369,-500.0,0.00021917,2]
[312167194,1705675842379,-500.0,0.00021917,2]
[312167197,1705675842389,-1189.37,0.00021917,2]
[312167203,1705675842400,-300.0,0.00021917,2]
[312167208,1705675842410,-500.0,0.00021917,2]
[312167212,1705675842424,-569.75,0.00021917,2]
[312167217,1705675842435,-4062.53,0.00021917,2]
[312167221,1705675842445,-1549.67,0.00021917,2]
[312167225,1705675842455,-500.0,0.00021917,2]
[312167231,1705675842466,-743.9,0.00021917,2]
[312167233,1705675842477,-715.41,0.00021917,2]
[312167234,1705675842487,-500.0,0.00021917,2]
[312167237,1705675842499,-500.0,0.00021917,2]
[312167240,1705675842509,-720.32,0.00021917,2]
[312167243,1705675842520,-500.0,0.00021917,2]
[312167246,1705675842531,-1714.61,0.00021917,2]
[312167249,1705675842540,-500.0,0.00021917,2]
[312167252,1705675842550,-534.49,0.00021917,2]
[312167255,1705675842560,-500.0,0.00021917,2]
[312167258,1705675842570,-500.0,0.00021917,2]
[312167261,1705675842580,-1336.9,0.00021917,2]
[312167264,1705675842591,-500.0,0.00021917,2]
[312167267,1705675842601,-500.0,0.00021917,2]
[312167270,1705675842611,-5667.92,0.00021917,2]
[312167273,1705675842623,-500.0,0.00021917,2]
[312167276,1705675842633,-671.96,0.00021917,2]
[312167279,1705675842643,-641.69,0.00021917,2]
[312167282,1705675842653,-4273.94,0.00021917,2]
[312167285,1705675842663,-500.0,0.00021917,2]
[312167287,1705675842676,-500.0,0.00021917,2]
[312167289,1705675842686,-500.0,0.00021917,2]
[312167291,1705675842696,-556.24,0.00021917,2]
[312167293,1705675842705,-500.0,0.00021917,2]
[312167295,1705675842715,-697.08,0.00021917,2]
[312167297,1705675842726,-7109.55,0.00021917,2]
[312167299,1705675842736,-500.0,0.00021917,2]
[312167301,1705675842746,-851.71,0.00021917,2]
[312167304,1705675842757,-500.0,0.00021917,2]
[312167306,1705675842766,-500.0,0.00021917,2]
[312167308,1705675842776,-500.0,0.00021917,2]
[312167310,1705675842786,-1308.04,0.00021917,2]
[312167311,1705675842796,-524.80030127,0.00021917,2]
[312167313,1705675842805,-500.0,0.00021917,2]
[312167316,1705675842816,-500.0,0.00021917,2]
[312167317,1705675842826,-583.66,0.00021917,2]
[312167320,1705675842836,-500.0,0.00021917,2]
[312167322,1705675842846,-536.36,0.00021917,2]
[312167324,1705675842856,-1163.47,0.00021917,2]
[312167326,1705675842866,-500.0,0.00021917,2]
[312167328,1705675842876,-500.0,0.00021917,2]
[312167330,1705675842888,-565.9,0.00021917,2]
[312167332,1705675842898,-500.0,0.00021917,2]
[312167334,1705675842909,-500.0,0.00021917,2]
[312167336,1705675842921,-500.0,0.00021917,2]
[312167338,1705675842932,-500.0,0.00021917,2]
[312167340,1705675842942,-500.0,0.00021917,2]
[312167342,1705675842952,-500.0,0.00021917,2]
[312167344,1705675842962,-500.0,0.00021917,2]
[312167346,1705675842972,-1013.4,0.00021917,2]
[312167349,1705675842982,-500.0,0.00021917,2]
[312167352,1705675842992,-500.0,0.00021917,2]
[312167355,1705675843002,-637.96,0.00021917,2]
[312167358,1705675843012,-2390.05,0.00021917,2]
[312167360,1705675843021,-2074.18,0.00021917,2]
[312167362,1705675843031,-500.0,0.00021917,2]
[312167364,1705675843041,-600.63,0.00021917,2]
[312167366,1705675843051,-1167.24,0.00021917,2]
[312167368,1705675843061,-1709.27,0.00021917,2]
[312167370,1705675843070,-1040.21,0.00021917,2]
[312167372,1705675843081,-500.0,0.00021917,2]
[312167374,1705675843090,-500.0,0.00021917,2]
[312167376,1705675843100,-500.0,0.00021917,2]
[312167378,1705675843110,-500.0,0.00021917,2]
[312167380,1705675843120,-500.0,0.00021917,2]
[312167382,1705675843131,-500.0,0.00021917,2]
[312167384,1705675843141,-500.0,0.00021917,2]
[312167386,1705675843151,-687.43,0.00021917,2]
[312167388,1705675843160,-946.92,0.00021917,2]
[312167390,1705675843173,-1204.36,0.00021917,2]
[312167392,1705675843184,-500.0,0.00021917,2]
[312167394,1705675843194,-500.0,0.00021917,2]
[312167396,1705675843204,-500.0,0.00021917,2]
[312167398,1705675843214,-500.0,0.00021917,2]
[312167400,1705675843225,-2616.31,0.00021917,2]
[312167402,1705675843237,-411.27250774,0.00021917,2]
[312167404,1705675843247,-500.0,0.00021917,2]
[312167406,1705675843257,-500.0,0.00021917,2]
[312167408,1705675843267,-500.0,0.00021917,2]
[312167410,1705675843279,-500.0,0.00021917,2]
[312167412,1705675843289,-500.0,0.00021917,2]
[312167414,1705675843299,-16557.38,0.00021917,2]
[312167416,1705675843309,-520.31,0.00021917,2]
[312167418,1705675843319,-501.16,0.00021917,2]
[312167420,1705675843329,-500.0,0.00021917,2]
[312167422,1705675843339,-500.0,0.00021917,2]
[312167424,1705675843349,-1323.75,0.00021917,2]
[312167426,1705675843359,-578.41,0.00021917,2]
[312167428,1705675843370,-672.82,0.00021917,2]
[312167430,1705675843385,-500.0,0.00021917,2]
[312167433,1705675843395,-611.76,0.00021917,2]
[312167435,1705675843406,-500.0,0.00021917,2]
[312167437,1705675843416,-2060.84,0.00021917,2]
[312167439,1705675843430,-565.07,0.00021917,2]
[312167441,1705675843440,-500.0,0.00021917,2]
[312167443,1705675843450,-500.0,0.00021917,2]
[312167445,1705675843460,-1047.08252589,0.00021917,10]
[312167447,1705675843470,-500.0,0.00021917,2]
[312167449,1705675843480,-500.0,0.00021917,2]
[312167451,1705675843489,-500.0,0.00021917,2]
[312167453,1705675843499,-508.41,0.00021917,2]
[312167455,1705675843509,-500.0,0.00021917,2]
[312167457,1705675843520,-500.0,0.00021917,2]
[312167458,1705675843530,-843.56,0.00021917,2]
[312167459,1705675843540,-842.08,0.00021917,2]
[312167460,1705675843551,-3628.19,0.00021917,2]
[312167461,1705675843560,-500.0,0.00021917,2]
[312167462,1705675843570,-500.0,0.00021917,2]
[312167463,1705675843580,-500.0,0.00021917,2]
[312167464,1705675843590,-500.0,0.00021917,2]
[312167466,1705675843600,-1426.94,0.00021917,2]
[312167468,1705675843610,-500.0,0.00021917,2]
[312167470,1705675843621,-500.0,0.00021917,2]
[312167472,1705675843631,-368.33467104,0.00021917,2]
[312167474,1705675843641,-500.0,0.00021917,2]
[312167476,1705675843650,-1894.83,0.00021917,2]
[312167478,1705675843660,-500.0,0.00021917,2]
[312167480,1705675843671,-500.0,0.00021917,2]
[312167482,1705675843681,-500.0,0.00021917,2]
[312167484,1705675843692,-500.0,0.00021917,2]
[312167485,1705675843702,-915.07,0.00021917,2]
[312167486,1705675843713,-1056.76,0.00021917,2]
[312167487,1705675843726,-9517.6,0.00021917,2]
[312167488,1705675843736,-500.0,0.00021917,2]
[312167489,1705675843747,-10738.87,0.00021917,2]
[312167490,1705675843757,-1971.34,0.00021917,2]
[312167491,1705675843767,-500.0,0.00021917,2]
[312167492,1705675843778,-826.25,0.00021917,2]
[312167493,1705675843789,-500.0,0.00021917,2]
[312167494,1705675843799,-1137.22,0.00021917,2]
[312167495,1705675843809,-500.0,0.00021917,2]
[312167496,1705675843820,-992.26,0.00021917,2]
[312167497,1705675843830,-591.21,0.00021917,2]
[312167498,1705675843839,-1647.32,0.00021917,2]
[312167499,1705675843849,-500.0,0.00021917,2]
[312167500,1705675843859,-1065.87,0.00021917,2]
[312167501,1705675843873,-500.0,0.00021917,2]
[312167502,1705675843884,-1297.15,0.00021917,2]
[312167503,1705675843895,-615.62,0.00021917,2]
[312167504,1705675843905,-500.0,0.00021917,2]
[312167506,1705675843915,-1159.98,0.00021917,2]
[312167508,1705675843929,-500.0,0.00021917,2]
[312167510,1705675843940,-633.6,0.00021917,2]
[312167512,1705675843950,-788.56,0.00021917,2]
[312167514,1705675843961,-1215.57,0.00021917,2]
[312167516,1705675843971,-500.0,0.00021917,2]
[312167549,1705675844369,-8354.18,0.00021917,2]
[312167551,1705675844379,-500.0,0.00021917,2]
[312167553,1705675844389,-500.0,0.00021917,2]
[312167555,1705675844399,-723.27,0.00021917,2]
[312167557,1705675844409,-500.0,0.00021917,2]
[312167560,1705675844430,-2428.02,0.00021917,2]
[312167562,1705675844442,-500.0,0.00021917,2]
[312167564,1705675844453,-654.87,0.00021917,2]
[312167566,1705675844463,-2880.11,0.00021917,2]
[312167568,1705675844474,-500.0,0.00021917,2]
[312167571,1705675844485,-1340.94,0.00021917,2]
[312167573,1705675844496,-4171.79,0.00021917,2]
[312167575,1705675844506,-500.0,0.00021917,2]
[312167577,1705675844517,-1705.75,0.00021917,2]
[312167579,1705675844527,-508.46,0.00021917,2]
[312167581,1705675844537,-500.0,0.00021917,2]
[312167583,1705675844548,-500.0,0.00021917,2]
[312167585,1705675844558,-848.31,0.00021917,2]
[312167587,1705675844569,-500.0,0.00021917,2]
[312167589,1705675844580,-500.0,0.00021917,2]
[312167591,1705675844590,-500.0,0.00021917,2]
[312167592,1705675844601,-500.0,0.00021917,2]
[312167593,1705675844612,-500.0,0.00021917,2]
[312167595,1705675844625,-1782.82,0.00021917,2]
[312167597,1705675844635,-677.17,0.00021917,2]
[312167599,1705675844646,-4651.39,0.00021917,2]
[312167601,1705675844656,-1020.96,0.00021917,2]
[312167603,1705675844669,-500.0,0.00021917,2]
[312167604,1705675844681,-500.0,0.00021917,2]
[312167605,1705675844692,-500.0,0.00021917,2]
[312167606,1705675844703,-500.0,0.00021917,2]
[312167607,1705675844713,-980.02,0.00021917,2]
[312167608,1705675844724,-584.33,0.00021917,2]
[312167609,1705675844735,-639.18,0.00021917,2]
[312167610,1705675844745,-500.0,0.00021917,2]
[312167611,1705675844757,-2088.22,0.00021917,2]
[312167612,1705675844767,-500.0,0.00021917,2]
[312167613,1705675844778,-500.0,0.00021917,2]
[312167614,1705675844788,-500.0,0.00021917,2]
[312167615,1705675844799,-544.5,0.00021917,2]